bitfinex/quotes_BTCUSD_20240721
["timestamp","ask_amount","ask_price","bid_price","bid_amount"]
[1721576273728,0.00820006,67509.0,67508.0,0.12405195]
[1721576274171,0.45258406,67509.0,67508.0,0.12405195]
[1721576275237,0.45258406,67509.0,67508.0,0.001]
[1721576275442,0.15632806,67509.0,67508.0,0.12405045]
[1721576275880,0.00820006,67509.0,67508.0,0.12405045]
[1721576276294,0.15632806,67509.0,67508.0,0.12405045]
[1721576276731,0.15632806,67509.0,67508.0,0.001]
[1721576276949,0.15632806,67509.0,67508.0,0.12405047]
[1721576277154,0.45258406,67509.0,67508.0,0.12405047]
[1721576277535,0.15632806,67509.0,67508.0,0.12405047]
[1721576278518,0.45258406,67509.0,67508.0,0.12405047]
[1721576279106,1.42992973,67509.0,67508.0,0.12405047]
[1721576279363,1.43177011,67509.0,67508.0,0.001]
[1721576279534,1.4429778,67509.0,67508.0,0.001]
[1721576279738,1.55396819,67509.0,67508.0,0.001]
[1721576279910,1.4429778,67509.0,67508.0,0.001]
[1721576280316,1.70837545,67509.0,67508.0,0.001]
[1721576280847,1.4429778,67509.0,67508.0,0.001]
[1721576284528,1.45072093,67509.0,67508.0,0.001]
[1721576287947,1.45160048,67509.0,67508.0,0.001]
[1721576291107,1.45096407,67509.0,67508.0,0.001]
[1721576292357,1.79722007,67509.0,67508.0,0.001]
[1721576292566,1.95156964,67509.0,67508.0,0.001]
[1721576292799,2.26401656,67509.0,67508.0,0.001]
[1721576293013,2.13076964,67509.0,67508.0,0.001]
[1721576293250,2.13076964,67509.0,67504.0,0.000924]
[1721576293503,1.383233,67505.0,67504.0,0.000924]
[1721576293721,1.63761474,67505.0,67504.0,0.000924]
[1721576293927,1.71691474,67505.0,67504.0,0.000924]
[1721576294131,2.00451479,67505.0,67504.0,0.000924]
[1721576294352,2.00451641,67505.0,67504.0,0.000924]
[1721576294536,1.87126431,67505.0,67504.0,0.000924]
[1721576294738,1.88225517,67505.0,67504.0,0.000924]
[1721576294935,1.89625517,67505.0,67504.0,0.000924]
[1721576297060,1.91025517,67505.0,67504.0,0.000924]
[1721576298418,2.06645517,67505.0,67504.0,0.000924]
[1721576298649,2.26411502,67505.0,67504.0,0.000924]
[1721576298836,2.13095517,67505.0,67504.0,0.000924]
[1721576299047,2.13095517,67505.0,67501.0,0.002]
[1721576299048,0.1,67502.0,67501.0,0.002]
[1721576299250,1.0139633,67502.0,67501.0,0.002]
[1721576299387,2.0528243,67502.0,67501.0,0.002]
[1721576299582,2.03681556,67502.0,67501.0,0.002]
[1721576300033,2.05801357,67502.0,67501.0,0.002]
[1721576300232,2.07201357,67502.0,67501.0,0.002]
[1721576300432,2.21909969,67502.0,67501.0,0.002]
[1721576300883,2.26909969,67502.0,67501.0,0.002]
[1721576301081,2.26910051,67502.0,67501.0,0.002]
[1721576301333,2.19109496,67502.0,67501.0,0.002]
[1721576301541,2.10801357,67502.0,67501.0,0.002]
[1721576301757,1.931664,67502.0,67501.0,0.002]
[1721576301969,0.69428799,67502.0,67501.0,0.002]
[1721576302171,0.58342126,67502.0,67501.0,0.002]
[1721576302379,1.07843447,67502.0,67501.0,0.002]
[1721576302564,1.03409,67502.0,67501.0,0.002]
[1721576303012,1.20274836,67502.0,67501.0,0.002]
[1721576303213,1.07843447,67502.0,67501.0,0.002]
[1721576303387,1.07843694,67502.0,67501.0,0.002]
[1721576303642,1.316377,67502.0,67501.0,0.002]
[1721576303850,1.02009,67502.0,67501.0,0.002]
[1721576304052,1.330377,67502.0,67501.0,0.002]
[1721576304479,1.06443851,67502.0,67501.0,0.002]
[1721576304689,1.02009,67502.0,67501.0,0.002]
[1721576304891,1.330377,67502.0,67501.0,0.002]
[1721576305094,1.316377,67502.0,67501.0,0.002]
[1721576305298,1.47072657,67502.0,67501.0,0.002]
[1721576305476,1.45672657,67502.0,67501.0,0.002]
[1721576305680,1.47109101,67502.0,67501.0,0.002]
[1721576306065,1.45809101,67502.0,67501.0,0.002]
[1721576306286,1.53761385,67502.0,67501.0,0.002]
[1721576306487,1.67931385,67502.0,67501.0,0.002]
[1721576306692,1.62679101,67502.0,67501.0,0.002]
[1721576306854,1.73766242,67502.0,67501.0,0.002]
[1721576307459,1.94388561,67502.0,67501.0,0.002]
[1721576308491,2.20227801,67502.0,67501.0,0.002]
[1721576308714,2.15227801,67502.0,67501.0,0.002]
[1721576309542,2.13927801,67502.0,67501.0,0.002]
[1721576309958,2.15327801,67502.0,67501.0,0.002]
[1721576310203,2.13927801,67502.0,67501.0,0.002]
[1721576310417,2.15327801,67502.0,67501.0,0.002]
[1721576310835,2.20327801,67502.0,67501.0,0.002]
[1721576311905,2.15327801,67502.0,67501.0,0.002]
[1721576312466,2.33634411,67502.0,67501.0,0.002]
[1721576312874,2.28634411,67502.0,67501.0,0.002]
[1721576313079,2.13199454,67502.0,67501.0,0.002]
[1721576313280,1.99892844,67502.0,67501.0,0.002]
[1721576313856,1.70852844,67502.0,67501.0,0.002]
[1721576314254,1.7388927,67502.0,67501.0,0.002]
[1721576314469,1.4426057,67502.0,67501.0,0.002]
[1721576314586,1.33174144,67502.0,67501.0,0.002]
[1721576314802,1.4426057,67502.0,67501.0,0.002]
[1721576315004,1.33174144,67502.0,67501.0,0.002]
[1721576315614,1.33174144,67502.0,67501.0,0.002924]
[1721576316033,1.4204348,67502.0,67501.0,0.002924]
[1721576316725,1.33174144,67502.0,67501.0,0.002924]
[1721576317160,0.18345922,67502.0,67501.0,0.149224]
[1721576317446,0.87987248,67502.0,67501.0,0.149224]
[1721576317673,0.77987248,67502.0,67501.0,0.149224]
[1721576317798,0.87987248,67502.0,67501.0,0.149224]
[1721576318014,1.4266488,67502.0,67501.0,0.002924]
[1721576318213,1.49317013,67502.0,67501.0,0.002924]
[1721576318412,1.42660593,67502.0,67501.0,0.002924]
[1721576318612,1.52330279,67502.0,67501.0,0.002924]
[1721576318845,1.85558979,67502.0,67501.0,0.002924]
[1721576319098,1.92309293,67502.0,67501.0,0.002924]
[1721576319305,2.05999293,67502.0,67501.0,0.002924]
[1721576319920,2.07399293,67502.0,67501.0,0.002924]
[1721576320747,2.05999293,67502.0,67501.0,0.002924]
[1721576321157,2.08699293,67502.0,67501.0,0.002924]
[1721576321367,2.06599293,67502.0,67501.0,0.002924]
[1721576322154,2.07999293,67502.0,67501.0,0.002924]
[1721576325274,2.21307951,67502.0,67501.0,0.002924]
[1721576326394,2.2131963,67502.0,67501.0,0.002924]
[1721576327036,2.07999293,67502.0,67501.0,0.002924]
[1721576330631,1.90898535,67502.0,67501.0,0.002924]
[1721576330832,1.78298535,67502.0,67501.0,0.002924]
[1721576331270,1.78298535,67502.0,67501.0,0.065124]
[1721576331271,1.33049835,67502.0,67501.0,0.065124]
[1721576331477,1.33054512,67502.0,67501.0,0.065124]
[1721576331710,1.33050003,67502.0,67501.0,0.065124]
[1721576332228,1.62678703,67502.0,67501.0,0.002924]
[1721576332427,1.88377743,67502.0,67501.0,0.002924]
[1721576332631,1.88380409,67502.0,67501.0,0.002924]
[1721576333249,2.00675434,67502.0,67501.0,0.002924]
[1721576333451,2.14365434,67502.0,67501.0,0.002924]
[1721576333895,2.43994134,67502.0,67501.0,0.002924]
[1721576334637,2.46294134,67502.0,67501.0,0.002924]
[1721576335272,0.148165,67492.0,67491.0,0.002]
[1721576335547,0.89520874,67492.0,67491.0,0.002]
[1721576335745,1.38305765,67492.0,67491.0,0.002]
[1721576335946,1.67938865,67492.0,67491.0,0.002]
[1721576338464,1.75688865,67492.0,67491.0,0.002]
[1721576338674,2.18043822,67492.0,67491.0,0.002]
[1721576339074,2.13043822,67492.0,67491.0,0.002]
[1721576339276,2.18043822,67492.0,67491.0,0.002]
[1721576339578,2.49976922,67492.0,67491.0,0.002]
[1721576339738,1.539788,67487.0,67486.0,0.009218]
[1721576339936,1.96116356,67487.0,67486.0,0.009218]
[1721576340189,1.82789315,67487.0,67486.0,0.009218]
[1721576340398,2.32859572,67487.0,67486.0,0.009218]
[1721576341070,1.333687,67482.0,67474.0,0.0665]
[1721576341276,2.12155017,67482.0,67473.0,0.4692]
[1721576341594,2.26855724,67482.0,67473.0,0.4692]
[1721576341851,2.36133401,67482.0,67473.0,0.4692]
[1721576342229,2.36133401,67482.0,67471.0,0.0685]
[1721576343545,2.37533401,67482.0,67471.0,0.0685]
[1721576343765,2.508479,67482.0,67471.0,0.0685]
[1721576344005,2.11932723,67482.0,67471.0,0.0685]
[1721576344279,1.62698224,67482.0,67474.0,0.07717479]
[1721576344498,1.62698224,67482.0,67481.0,0.0685]
[1721576346030,1.62698224,67482.0,67481.0,7.0685]
[1721576346455,1.62698224,67482.0,67481.0,7.002]
[1721576346667,1.98753181,67482.0,67481.0,7.002]
[1721576346915,1.82226874,67482.0,67481.0,7.002]
[1721576347129,1.61624276,67482.0,67481.0,7.002]
[1721576348420,1.61624276,67482.0,67481.0,7.0685]
[1721576348627,1.43073439,67482.0,67481.0,7.0685]
[1721576348855,0.6614268,67482.0,67481.0,7.1506]
[1721576349078,0.27636102,67482.0,67481.0,7.1506]
[1721576349320,0.276187,67482.0,67481.0,7.1506]
[1721576349526,0.572562,67482.0,67481.0,7.1506]
[1721576349734,0.558562,67482.0,67481.0,7.1506]
[1721576349950,0.840937,67482.0,67481.0,7.151524]
[1721576350170,0.854937,67482.0,67481.0,7.151524]
[1721576350400,0.572562,67482.0,67481.0,7.151524]
[1721576350628,0.558562,67482.0,67481.0,7.151524]
[1721576351065,0.868937,67482.0,67481.0,7.151524]
[1721576351319,1.41357826,67482.0,67481.0,7.002924]
[1721576351522,1.50227042,67482.0,67481.0,7.002924]
[1721576351729,2.08806158,67482.0,67481.0,7.002924]
[1721576351999,1.99579637,67482.0,67481.0,7.002924]
[1721576352206,2.00779637,67482.0,67481.0,7.002924]
[1721576352425,2.03079637,67482.0,67481.0,7.002924]
[1721576352849,2.04479637,67482.0,67481.0,7.002924]
[1721576353055,1.92491185,67482.0,67481.0,7.002924]
[1721576354180,1.40542843,67482.0,67481.0,7.147724]
[1721576354393,0.9464979,67482.0,67481.0,7.147724]
[1721576354603,0.87998011,67482.0,67481.0,7.147724]
[1721576354820,0.33157344,67482.0,67481.0,7.147724]
[1721576355038,0.28723011,67482.0,67481.0,7.147724]
[1721576355240,0.558562,67482.0,67481.0,7.147724]
[1721576355415,0.572562,67482.0,67481.0,7.147724]
[1721576356101,0.544562,67482.0,67481.0,7.147724]
[1721576356297,0.557562,67482.0,67481.0,7.147724]
[1721576357205,0.571562,67482.0,67481.0,7.147724]
[1721576357427,0.557562,67482.0,67481.0,7.147724]
[1721576357858,0.569562,67482.0,67481.0,7.147724]
[1721576358060,0.865937,67482.0,67481.0,7.147724]
[1721576358264,0.125,67482.0,67481.0,7.147724]
[1721576359748,0.025,67482.0,67481.0,7.147724]
[1721576361130,0.125,67482.0,67481.0,7.147724]
[1721576362130,0.025,67482.0,67481.0,7.147724]
[1721576363160,0.025,67482.0,67481.0,7.145724]
[1721576363410,0.025,67482.0,67481.0,7.590292]
[1721576363541,0.025,67482.0,67481.0,7.71339163]
[1721576364173,0.00084,67486.0,67482.0,0.1431]
[1721576364345,0.00084,67486.0,67485.0,0.1431]
[1721576364544,0.00084,67486.0,67485.0,0.145894]
[1721576364746,0.00084,67486.0,67485.0,0.1431]
[1721576366268,0.00184,67486.0,67485.0,0.1431]
[1721576366903,0.742732,67486.0,67485.0,0.1441]
[1721576367053,0.742732,67486.0,67485.0,0.061]
[1721576367540,1.043089,67486.0,67485.0,0.061]
[1721576368148,1.054089,67486.0,67485.0,0.061]
[1721576368348,0.740925,67483.0,67482.0,0.002794]
[1721576368873,1.037295,67483.0,67482.0,0.002794]
[1721576369056,1.037295,67483.0,67481.0,7.000924]
[1721576369057,1.037312,67482.0,67481.0,7.000924]
[1721576369263,1.40145428,67482.0,67481.0,7.000924]
[1721576369561,1.36709508,67482.0,67481.0,7.000924]
[1721576369841,1.43365354,67482.0,67481.0,7.000924]
[1721576370315,1.36825354,67482.0,67481.0,7.000924]
[1721576370726,1.3904397,67482.0,67481.0,7.000924]
[1721576370933,1.3984397,67482.0,67481.0,7.000924]
[1721576371137,1.31569508,67482.0,67481.0,7.000924]
[1721576374782,0.86493834,67482.0,67481.0,7.062324]
[1721576375011,0.27218834,67482.0,67481.0,7.062324]
[1721576375217,0.262187,67482.0,67481.0,7.062324]
[1721576375391,0.114,67482.0,67481.0,7.062324]
[1721576375606,0.014,67482.0,67481.0,7.062324]
[1721576378218,0.162187,67482.0,67481.0,7.062324]
[1721576378401,0.458562,67482.0,67481.0,7.062324]
[1721576379196,0.162187,67482.0,67481.0,7.062324]
[1721576379995,0.458562,67482.0,67481.0,7.062324]
[1721576381798,0.754937,67482.0,67481.0,7.062324]
[1721576381999,0.754937,67482.0,67481.0,7.000924]
[1721576382692,0.458562,67482.0,67481.0,7.000924]
[1721576383568,0.162187,67482.0,67481.0,7.12402791]
[1721576383770,0.162187,67482.0,67481.0,7.18902791]
[1721576385026,0.458562,67482.0,67481.0,7.18902791]
[1721576385432,0.458562,67482.0,67481.0,7.18902703]
[1721576386646,0.754937,67482.0,67481.0,7.18902703]
[1721576388128,0.458562,67482.0,67481.0,7.18902703]
[1721576388335,0.162187,67482.0,67481.0,7.18902703]
[1721576388550,0.162187,67482.0,67481.0,7.18902694]
[1721576388774,0.014,67482.0,67481.0,7.18902694]
[1721576388980,0.162187,67482.0,67481.0,7.18902694]
[1721576390223,0.014,67482.0,67481.0,7.18902694]
[1721576390652,0.162187,67482.0,67481.0,7.18902694]
[1721576391780,0.162187,67482.0,67481.0,7.18902448]
[1721576394232,0.014,67482.0,67481.0,7.18902448]
[1721576394437,0.162187,67482.0,67481.0,7.18902448]
[1721576394642,0.20660101,67482.0,67481.0,7.18902448]
[1721576394815,0.162187,67482.0,67481.0,7.18902448]
[1721576395049,0.20661709,67482.0,67481.0,7.18902846]
[1721576395555,0.162187,67482.0,67481.0,7.065924]
[1721576395770,0.20661643,67482.0,67481.0,7.1890287]
[1721576396195,0.50299143,67482.0,67481.0,7.1890287]
[1721576397394,0.458562,67482.0,67481.0,7.1890287]
[1721576397551,0.50299143,67482.0,67481.0,7.1890287]
[1721576398171,0.458562,67482.0,67481.0,7.065924]
[1721576398377,0.50299695,67482.0,67481.0,7.18902885]
[1721576398579,0.458562,67482.0,67481.0,7.18902885]
[1721576399688,0.52521443,67482.0,67481.0,7.18902885]
[1721576401001,0.52525253,67482.0,67481.0,7.18902907]
[1721576401448,0.52525253,67482.0,67481.0,7.12402907]
[1721576401579,0.52525365,67482.0,67481.0,7.12402907]
[1721576402408,0.458562,67482.0,67481.0,7.12402907]
[1721576403291,0.162187,67482.0,67481.0,7.12402907]
[1721576403496,0.458562,67482.0,67481.0,7.12402907]
[1721576403919,0.458562,67482.0,67481.0,7.12402596]
[1721576404082,0.162187,67482.0,67481.0,7.12402596]
[1721576406013,0.05846055,67482.0,67481.0,7.26792596]
[1721576406213,0.014,67482.0,67481.0,7.26792596]
[1721576406428,0.05846122,67482.0,67481.0,7.26792596]
[1721576406955,0.014,67482.0,67481.0,7.144824]
[1721576407163,0.014,67482.0,67481.0,7.26792548]
[1721576407374,0.05846102,67482.0,67481.0,7.88459417]
[1721576407792,0.014,67482.0,67481.0,8.18097317]
[1721576408013,0.014,67482.0,67481.0,8.24538196]
[1721576408216,0.014,67482.0,67481.0,7.71249417]
[1721576408427,0.00084,67486.0,67481.0,7.26792617]
[1721576408639,0.00084,67486.0,67482.0,0.12589617]
[1721576408844,0.00084,67486.0,67483.0,0.12310217]
[1721576409021,0.00084,67486.0,67484.0,0.12589617]
[1721576409283,0.00084,67486.0,67485.0,0.12310217]
[1721576409549,0.149018,67486.0,67485.0,0.12309311]
[1721576409923,0.19346695,67486.0,67485.0,0.12309311]
[1721576410133,0.148183,67485.0,67482.0,0.002794]
[1721576410334,0.148183,67485.0,67483.0,0.12309498]
[1721576410484,0.148183,67485.0,67484.0,0.12309498]
[1721576412380,0.150183,67485.0,67484.0,0.12309498]
[1721576412937,0.148183,67485.0,67484.0,0.12309498]
[1721576413142,0.154183,67485.0,67484.0,0.12309374]
[1721576414811,0.155023,67485.0,67484.0,0.12309374]
[1721576415281,0.149023,67485.0,67484.0,0.12309374]
[1721576415712,0.151023,67485.0,67484.0,0.12309374]
[1721576416571,0.151023,67485.0,67484.0,0.1230939]
[1721576418154,0.00284,67485.0,67484.0,0.1230939]
[1721576418358,0.00284,67485.0,67484.0,0.1868939]
[1721576418552,0.00284,67485.0,67484.0,0.4139769]
[1721576419330,0.00084,67485.0,67484.0,0.7103429]
[1721576419534,0.00084,67485.0,67484.0,0.71033635]
[1721576419737,0.00284,67485.0,67484.0,0.71033635]
[1721576420338,0.00084,67485.0,67484.0,1.67955009]
[1721576420538,0.00084,67485.0,67484.0,1.86416896]
[1721576420747,0.00084,67485.0,67484.0,1.81416896]
[1721576421598,0.00084,67485.0,67484.0,1.81716896]
[1721576421799,0.00084,67485.0,67484.0,1.86916896]
[1721576421973,0.00084,67485.0,67484.0,1.81616896]
[1721576422189,0.00084,67485.0,67484.0,1.81916896]
[1721576422391,0.00184,67485.0,67484.0,1.81916896]
[1721576422596,0.00184,67485.0,67484.0,1.51146274]
[1721576422796,0.00184,67485.0,67484.0,1.81913312]
[1721576423186,0.00184,67485.0,67484.0,1.87098645]
[1721576423595,0.00184,67485.0,67484.0,1.57462045]
[1721576424210,0.00184,67485.0,67484.0,1.33816489]
[1721576425069,0.00184,67485.0,67484.0,1.70753089]
[1721576425320,0.00184,67485.0,67484.0,1.94398636]
[1721576425888,0.00184,67485.0,67484.0,1.94398761]
[1721576426106,0.00084,67485.0,67484.0,1.93898761]
[1721576426360,0.00284,67485.0,67484.0,1.94398761]
[1721576426594,0.00284,67485.0,67484.0,1.89492661]
[1721576428908,0.00284,67485.0,67484.0,1.58725674]
[1721576429080,0.00284,67485.0,67484.0,1.89490602]
[1721576429703,0.00284,67485.0,67484.0,1.84490602]
[1721576429904,0.00284,67485.0,67484.0,1.84211202]
[1721576431100,0.00284,67485.0,67484.0,0.27075971]
[1721576431328,0.00284,67485.0,67484.0,0.71530871]
[1721576431530,0.00284,67485.0,67484.0,0.41894271]
[1721576431935,0.00284,67485.0,67484.0,0.005]
[1721576432138,0.00184,67485.0,67484.0,0.12607316]
[1721576432337,0.00084,67485.0,67484.0,0.12307316]
[1721576432541,0.00184,67485.0,67484.0,0.8761683]
[1721576432715,0.00184,67485.0,67484.0,1.1725343]
[1721576432921,0.00084,67485.0,67484.0,1.1633283]
[1721576433124,0.00084,67485.0,67484.0,1.44979414]
[1721576433323,0.00184,67485.0,67484.0,1.77236614]
[1721576433566,0.00184,67485.0,67484.0,1.72236614]
[1721576433733,0.00184,67485.0,67484.0,1.7194029]
[1721576434334,0.00184,67485.0,67484.0,1.7224029]
[1721576434560,0.00184,67485.0,67484.0,1.72238653]
[1721576434721,0.00084,67485.0,67484.0,1.71638653]
[1721576434921,0.00184,67485.0,67484.0,1.71938653]
[1721576435325,0.00184,67485.0,67484.0,1.71838653]
[1721576435529,0.00284,67485.0,67484.0,1.72538653]
[1721576436134,0.148145,67502.0,67493.0,0.148162]
[1721576436345,0.148146,67501.0,67494.0,0.19086032]
[1721576436549,0.16284201,67501.0,67495.0,0.12306632]
[1721576436747,0.16284201,67501.0,67496.0,0.002794]
[1721576436953,0.16284201,67501.0,67497.0,0.12306631]
[1721576437165,0.16284201,67501.0,67498.0,0.12586031]
[1721576437408,0.16284201,67501.0,67499.0,0.12306631]
[1721576437586,0.16284201,67501.0,67500.0,0.002794]
[1721576437786,0.16284201,67501.0,67495.0,0.002794]
[1721576437998,0.16284201,67501.0,67496.0,0.12306607]
[1721576438179,0.14815,67500.0,67497.0,0.12586007]
[1721576438381,0.14815,67500.0,67498.0,0.12306607]
[1721576438607,0.14815,67500.0,67499.0,0.12586008]
[1721576438777,0.14815,67500.0,67495.0,0.001]
[1721576438983,0.18184201,67501.0,67496.0,0.12586023]
[1721576439189,0.16284201,67501.0,67497.0,0.12306623]
[1721576439393,0.16284201,67501.0,67498.0,0.12586023]
[1721576439767,0.16284201,67501.0,67499.0,0.12306623]
[1721576439768,0.016,67500.0,67499.0,0.12306623]
[1721576440161,0.02696409,67500.0,67499.0,0.12306623]
[1721576440555,0.17511209,67500.0,67499.0,0.12306623]
[1721576440748,0.18016857,67500.0,67499.0,0.12306623]
[1721576440885,0.02502057,67500.0,67499.0,0.12306623]
[1721576441302,0.01602057,67500.0,67499.0,0.12306623]
[1721576441561,0.01602057,67500.0,67497.0,0.001]
[1721576441759,0.01602057,67500.0,67498.0,0.1258604]
[1721576442089,0.02302057,67500.0,67499.0,0.1230664]
[1721576442393,0.02502057,67500.0,67499.0,0.1240664]
[1721576442576,0.03202057,67500.0,67499.0,0.1250664]
[1721576442728,0.03202057,67500.0,67499.0,0.1240664]
[1721576442935,0.02302057,67500.0,67499.0,0.1230664]
[1721576443143,0.03202057,67500.0,67499.0,0.1230664]
[1721576443997,0.18016857,67500.0,67499.0,0.1230664]
[1721576444199,0.03202057,67500.0,67499.0,0.1230664]
[1721576444400,0.03902057,67500.0,67499.0,0.1230664]
[1721576444605,0.02502057,67500.0,67499.0,0.1230664]
[1721576445012,0.18016857,67500.0,67499.0,0.1240696]
[1721576445215,0.18016857,67500.0,67499.0,0.001]
[1721576445216,0.17116857,67500.0,67499.0,0.001]
[1721576445634,0.17116857,67500.0,67499.0,0.002]
[1721576445840,0.84586057,67500.0,67499.0,0.12507145]
[1721576446040,0.84586057,67500.0,67499.0,0.002]
[1721576446215,0.84586057,67500.0,67499.0,0.12507164]
[1721576446619,0.85486057,67500.0,67499.0,0.12507164]
[1721576447404,1.21565657,67500.0,67499.0,0.12507164]
[1721576447607,1.37003831,67500.0,67499.0,0.002]
[1721576448054,1.76633431,67500.0,67499.0,0.002]
[1721576448291,1.85505621,67500.0,67499.0,0.002]
[1721576448504,1.78182881,67500.0,67499.0,0.002]
[1721576448883,1.78266881,67500.0,67499.0,0.002]
[1721576451301,1.76717431,67500.0,67499.0,0.002]
[1721576451507,1.76281007,67500.0,67499.0,0.002]
[1721576452154,1.76281007,67500.0,67486.0,0.002794]
[1721576452155,0.444529,67487.0,67486.0,0.002794]
[1721576452402,0.444529,67487.0,67486.0,0.12309356]
[1721576452773,0.740882,67487.0,67486.0,0.12309356]
[1721576454352,0.740882,67487.0,67485.0,0.4692]
[1721576454353,0.444535,67486.0,67485.0,0.4692]
[1721576454557,0.444535,67486.0,67485.0,0.12309038]
[1721576454558,0.148178,67486.0,67485.0,0.12309038]
[1721576455591,0.740892,67486.0,67485.0,0.12309038]
[1721576455796,0.148185,67483.0,67482.0,0.07996879]
[1721576456000,0.148185,67483.0,67482.0,0.20306164]
[1721576456202,0.148185,67483.0,67482.0,0.20026764]
[1721576456408,0.148185,67483.0,67482.0,0.20306164]
[1721576456825,0.148185,67483.0,67482.0,0.20026764]
[1721576457240,0.001,67486.0,67482.0,0.20026764]
[1721576457445,0.148179,67486.0,67483.0,0.12588685]
[1721576457649,0.148179,67486.0,67484.0,0.12309264]
[1721576457857,0.296348,67489.0,67485.0,0.12309265]
[1721576458061,0.29635,67488.0,67482.0,0.08196879]
[1721576458311,0.148173,67489.0,67483.0,0.12309228]
[1721576458515,0.001,67486.0,67484.0,0.12588628]
[1721576458722,0.001,67486.0,67485.0,0.12309228]
[1721576458961,0.148174,67489.0,67485.0,0.18469228]
[1721576459157,0.148174,67488.0,67486.0,0.12588628]
[1721576459360,0.148174,67488.0,67485.0,0.0636]
[1721576459559,0.148174,67488.0,67486.0,0.12309179]
[1721576459772,0.0443898,67492.0,67485.0,0.0616]
[1721576459973,0.1,67493.0,67486.0,0.27702069]
[1721576460176,0.1,67493.0,67487.0,0.12308546]
[1721576460381,0.1,67493.0,67488.0,0.12587946]
[1721576460763,0.1,67493.0,67489.0,0.12308029]
[1721576460764,0.01165266,67492.0,67489.0,0.12308029]
[1721576461000,0.01165266,67492.0,67490.0,0.12587429]
[1721576461214,0.01165266,67492.0,67486.0,0.148177]
[1721576461417,0.01165266,67492.0,67487.0,0.12587465]
[1721576461635,0.003,67493.0,67488.0,0.12308065]
[1721576461842,0.1,67494.0,67489.0,0.12587465]
[1721576462060,0.01165266,67492.0,67490.0,0.12308065]
[1721576462279,0.11365266,67492.0,67486.0,0.002794]
[1721576462491,0.148172,67489.0,67487.0,0.12308382]
[1721576462705,0.291474,67488.0,67480.0,0.0616]
[1721576462919,0.291474,67488.0,67482.0,0.1258824]
[1721576462920,0.148181,67485.0,67482.0,0.1258824]
[1721576463132,0.296353,67487.0,67483.0,0.1230884]
[1721576463337,0.296353,67487.0,67477.0,0.209798]
[1721576463338,0.148181,67485.0,67484.0,0.12588473]
[1721576463551,0.148181,67485.0,67484.0,0.12309073]
[1721576463761,0.148181,67485.0,67484.0,0.12309168]
[1721576464398,0.296354,67487.0,67484.0,0.12309168]
[1721576464631,0.14818,67486.0,67485.0,0.12588568]
[1721576464845,0.14818,67486.0,67485.0,0.12309168]
[1721576465633,0.14818,67486.0,67482.0,0.07996879]
[1721576465855,0.14818,67486.0,67484.0,0.002]
[1721576466059,0.14818,67486.0,67485.0,0.12588657]
[1721576466229,0.14818,67486.0,67485.0,0.12309257]
[1721576466459,0.14818,67486.0,67485.0,0.12309281]
[1721576467494,0.14918,67486.0,67485.0,0.12509281]
[1721576469077,0.001,67486.0,67485.0,0.12509281]
[1721576469289,0.001,67486.0,67485.0,0.26569281]
[1721576469704,0.001,67486.0,67485.0,0.26568922]
[1721576469913,0.001,67486.0,67485.0,0.18938922]
[1721576470137,0.001,67486.0,67485.0,0.86757713]
[1721576470345,0.001,67486.0,67485.0,1.45733796]
[1721576470758,0.001,67486.0,67485.0,1.69383405]
[1721576470996,0.001,67486.0,67485.0,1.39747205]
[1721576471447,0.00084,67500.0,67485.0,0.65456705]
[1721576471655,0.00084,67500.0,67491.0,0.296335]
[1721576471879,0.148989,67500.0,67492.0,0.27404722]
[1721576472091,0.0776,67499.0,67493.0,0.12308922]
[1721576472294,0.0776,67499.0,67489.0,0.22534579]
[1721576472295,0.148152,67498.0,67494.0,0.12588322]
[1721576472443,0.09007949,67499.0,67495.0,0.12308922]
[1721576472444,0.23822949,67499.0,67495.0,0.12308922]
[1721576472646,0.148154,67497.0,67496.0,0.12586638]
[1721576472847,0.148154,67497.0,67496.0,0.12307238]
[1721576473642,0.15910773,67497.0,67496.0,0.12307238]
[1721576473866,0.45541673,67497.0,67496.0,0.12307238]
[1721576474230,0.148161,67495.0,67486.0,0.150972]
[1721576474434,0.148161,67494.0,67488.0,0.002794]
[1721576474646,0.148167,67491.0,67490.0,0.002794]
[1721576474848,0.584402,67491.0,67490.0,0.12307692]
[1721576475055,0.88228773,67491.0,67490.0,0.12307692]
[1721576475969,0.88228773,67491.0,67485.0,0.002794]
[1721576475970,0.148177,67487.0,67485.0,0.002794]
[1721576476190,0.148177,67487.0,67486.0,0.12308578]
[1721576476527,0.740883,67487.0,67486.0,0.12308578]
[1721576476727,0.148185,67483.0,67482.0,0.002794]
[1721576476939,0.148185,67483.0,67482.0,0.12589293]
[1721576476940,0.444555,67483.0,67482.0,0.12589293]
[1721576477337,0.444555,67483.0,67482.0,0.12309893]
[1721576477921,0.740925,67483.0,67482.0,0.12309893]
[1721576478123,0.740925,67483.0,67482.0,0.12589293]
[1721576478374,0.740925,67483.0,67482.0,0.002794]
[1721576478584,0.741925,67483.0,67482.0,0.002794]
[1721576478998,0.742925,67483.0,67482.0,0.005794]
[1721576480341,0.805025,67483.0,67482.0,0.005794]
[1721576481185,0.804025,67483.0,67482.0,0.002794]
[1721576481315,0.803025,67483.0,67482.0,0.002794]
[1721576481521,0.812025,67483.0,67482.0,0.003718]
[1721576481723,0.819025,67483.0,67482.0,0.003718]
[1721576481926,0.810025,67483.0,67482.0,0.003718]
[1721576482349,0.819025,67483.0,67482.0,0.003718]
[1721576483966,1.115395,67483.0,67482.0,0.003718]
[1721576484168,1.115395,67483.0,67482.0,0.000924]
[1721576484371,1.35057674,67483.0,67482.0,0.000924]
[1721576484549,1.49496894,67483.0,67482.0,0.000924]
[1721576484761,1.50743229,67483.0,67482.0,0.000924]
[1721576484961,1.47238674,67483.0,67482.0,0.000924]
[1721576485162,1.47238674,67483.0,67482.0,0.07809879]
[1721576485163,1.41028674,67483.0,67482.0,0.07809879]
[1721576485362,0.99458259,67483.0,67482.0,0.07809879]
[1721576485630,0.264185,67483.0,67482.0,0.07809879]